lending/lending_fUSD_20240112
["ID","MTS","AMOUNT","RATE_DAILY","PERIOD"]
[311283798,1705017748991,176.05,0.00022,2]
[311283805,1705018034097,-155.13784063,0.00022547,2]
[311283809,1705018049193,322.5877837,0.00022,4]
[311283818,1705018202333,150.0,0.00022,2]
[311283819,1705018202522,150.0,0.00022,2]
[311283820,1705018202742,150.0,0.00022,2]
[311283821,1705018202938,150.0,0.00022,2]
[311283822,1705018203110,150.0,0.00022,2]
[311283823,1705018203315,150.0,0.00022,2]
[311283824,1705018203529,150.0,0.00022,2]
[311283825,1705018203954,150.0,0.00022,2]
[311283826,1705018204192,150.0,0.00022,2]
[311283827,1705018204432,150.0,0.00022,2]
[311283828,1705018204869,261.11940098,0.00022,2]
[311283839,1705018232013,-542.45490772,0.0002254,2]
[311283840,1705018232023,-644.23520645,0.00022541,2]
[311283841,1705018232035,-269.42731393,0.00022541,2]
[311283842,1705018232046,-1129.24535294,0.00022541,2]
[311283843,1705018232090,-573.7092736,0.00022541,2]
[311283844,1705018232101,-158.44274332,0.00022543,2]
[311283845,1705018232109,-2886.59900688,0.00022544,2]
[311283846,1705018232121,-3542.99269655,0.00022544,2]
[311283847,1705018232130,-150.0,0.00022546,2]
[311283848,1705018232142,-155.0,0.00022547,2]
[311283849,1705018232151,-176.05,0.00022548,2]
[311283850,1705018232160,-393.68225135,0.00022768,2]
[311283851,1705018232170,-3266.56473145,0.00022768,2]
[311283852,1705018232179,-492.85772598,0.00022768,2]
[311283853,1705018232188,-279.95435992,0.00022768,2]
[311283854,1705018232198,-205.21073047,0.000229,2]
[311283855,1705018232207,-270.97259848,0.000229,2]
[311283856,1705018232217,-4942.90576656,0.000229,2]
[311283857,1705018232226,-335.29116354,0.000229,2]
[311283858,1705018232236,-33697.60628684,0.00022998,2]
[311283859,1705018232245,-3618.63889774,0.00022998,2]
[311283860,1705018232254,-155.41046091,0.00022998,2]
[311283861,1705018232264,-5469.5421162,0.00022998,2]
[311283862,1705018232273,-150.0,0.00022999,2]
[311283863,1705018232282,-150.0,0.00022999,2]
[311283864,1705018232292,-150.0,0.00022999,2]
[311283865,1705018232305,-150.0,0.00022999,2]
[311283866,1705018232314,-57939.22520109,0.00023,2]
[311283867,1705018232327,-1790.703345,0.00023,2]
[311283870,1705018232353,-419.33476208,0.00022539,2]
[311283872,1705018232362,-64.76715283,0.00023,2]
[311283873,1705018232375,-163565.99999797,0.00023,2]
[311283874,1705018232417,-4414.83855654,0.00023,2]
[311283875,1705018232428,-700.0,0.00023,2]
[311283880,1705018238020,-260.26227802,0.000229,2]
[311283881,1705018238061,-999.95017294,0.000229,2]
[311283882,1705018238071,-7005.9594323,0.00023,2]
[311283883,1705018238084,-1130.88909021,0.00023,2]
[311283884,1705018238096,-473.3383626,0.00023,2]
[311283885,1705018238281,-979.17000003,0.00023,2]
[311283886,1705018238292,-4723.37346589,0.00023,2]
[311283887,1705018238344,-1016.48406327,0.00023,2]
[311283888,1705018238358,-951.26132272,0.00023,2]
[311283889,1705018238369,-39085.59990497,0.00023,2]
[311283890,1705018238380,-4943817.90695751,0.00023,2]
[311283891,1705018238389,-932.80587925,0.00023,2]
[311283892,1705018238398,-352.01,0.00023096,2]
[311283893,1705018238408,-441.50604548,0.00023288,2]
[311283895,1705018238417,-370.64345198,0.00023288,2]
[311283897,1705018238426,-259.04337649,0.00023288,2]
[311283898,1705018238435,-370.45047162,0.00023288,4]
[311283900,1705018238444,-500.0,0.00023288,4]
[311283902,1705018238453,-500.0,0.00023288,4]
[311283904,1705018238463,-568.13631163,0.00023288,4]
[311283906,1705018238472,-500.0,0.00023288,4]
[311283908,1705018238481,-280.8280861,0.00023288,4]
[311283909,1705018238490,-500.0,0.00023288,4]
[311283911,1705018238499,-500.0,0.00023288,4]
[311283913,1705018238508,-231.39469444,0.00023288,4]
[311283915,1705018238517,-500.0,0.00023288,4]
[311283916,1705018238527,-390.41404304,0.00023288,4]
[311283918,1705018238535,-499.99999999,0.00023288,4]
[311283920,1705018238544,-435.36664987,0.00024,2]
[311283922,1705018238553,-4942.90576656,0.00024173,2]
[311283923,1705018238562,-640.0,0.00024222,2]
[311283925,1705018238571,-200.0,0.00024527,2]
[311283927,1705018238580,-210.0,0.00024801,2]
[311283929,1705018238589,-874.52169432,0.000249,2]
[311283931,1705018238598,-167.05182833,0.00025,2]
[311283933,1705018238610,-691.04005445,0.00025,2]
[311283935,1705018238619,-1246.87746717,0.00025,2]
[311283936,1705018238627,-1581.98629386,0.00025,2]
[311283938,1705018238637,-1016.69878254,0.00025,2]
[311283940,1705018238646,-499.99,0.00025,2]
[311283942,1705018238656,-550.0,0.00025,3]
[311283944,1705018238665,-508.04025934,0.00025,2]
[311283946,1705018238674,-1796.74731938,0.000251,2]
[311283947,1705018238683,-645.56,0.00025149,2]
[311283949,1705018238691,-4942.90576656,0.00025445,2]
[311283951,1705018238700,-200.78603965,0.00026,2]
[311283953,1705018238710,-365.1,0.00026589,2]
[311283955,1705018238719,-874.52169429,0.00026614,3]
[311283957,1705018238728,-163.58,0.00026643,2]
[311283959,1705018238736,-4942.90576656,0.00026718,2]
[311283960,1705018238745,-23900.0,0.00026813,2]
[311283962,1705018238754,-250.0,0.00026978,2]
[311283964,1705018238764,-221.33301398,0.00027,2]
[311283966,1705018238773,-600.0,0.00027,3]
[311283968,1705018238782,-150.0,0.00027105,2]
[311283970,1705018238790,-709.39,0.00027113,2]
[311283972,1705018238800,-3003.62,0.00027126,2]
[311283974,1705018238808,-631.51,0.00027137,2]
[311283975,1705018238817,-164.43,0.00027161,2]
[311283977,1705018238826,-155.12,0.00027234,2]
[311283979,1705018238836,-150.95,0.00027245,2]
[311283981,1705018238845,-640.0,0.0002725,2]
[311283983,1705018238857,-2000.0,0.00027266,2]
[311283985,1705018238866,-293.0,0.00027281,2]
[311283986,1705018238876,-150.95,0.00027328,2]
[311283988,1705018238885,-360.0,0.00027368,2]
[311283990,1705018238893,-155.0,0.00027397,2]
[311283992,1705018238903,-223.20855706,0.00027397,2]
[311283994,1705018238911,-2506.93398851,0.00027397,2]
[311283996,1705018238921,-2500.0,0.00027397,4]
[311283998,1705018238930,-250.0,0.00027397,2]
[311284000,1705018238942,-493.76,0.00027397,2]
[311284002,1705018238951,-250.0,0.000274,2]
[311284003,1705018238960,-150.95,0.00027412,2]
[311284005,1705018238970,-645.56,0.00027413,2]
[311284007,1705018238980,-503.48,0.00027454,2]
[311284009,1705018238990,-150.95,0.00027495,2]
[311284011,1705018238999,-403.11,0.00027548,2]
[311284013,1705018239009,-493.76,0.00027556,2]
[311284015,1705018239018,-150.95,0.00027579,2]
[311284017,1705018239027,-503.48,0.00027599,2]
[311284018,1705018239037,-202.0,0.00027626,2]
[311284020,1705018239046,-150.95,0.00027662,2]
[311284022,1705018239057,-493.76,0.00027714,2]
[311284024,1705018239067,-503.48,0.00027743,2]
[311284026,1705018239076,-150.95,0.00027746,2]
[311284028,1705018239086,-150.95,0.00027829,2]
[311284030,1705018239095,-493.76,0.00027872,2]
[311284032,1705018239106,-503.48,0.00027888,2]
[311284034,1705018239115,-150.95,0.00027913,2]
[311284035,1705018239125,-4942.90576656,0.00027991,2]
[311284037,1705018239134,-150.95,0.00027996,2]
[311284039,1705018239143,-6144.09666451,0.00028,2]
[311284041,1705018239152,-202.73182804,0.00028,2]
[311284043,1705018239161,-687.02354933,0.00028,2]
[311284045,1705018239170,-493.76,0.0002803,2]
[311284047,1705018239180,-503.48,0.00028032,2]
[311284048,1705018239189,-150.95,0.0002808,2]
[311284050,1705018239198,-709.39,0.00028092,2]
[311284052,1705018239207,-150.95,0.00028163,2]
[311284054,1705018239216,-503.48,0.00028177,2]
[311284056,1705018239225,-493.76,0.00028189,2]
[311284057,1705018239234,-150.95,0.00028247,2]
[311284058,1705018239243,-503.48,0.00028321,2]
[311284059,1705018239252,-874.52169429,0.00028329,4]
[311284060,1705018239261,-150.95,0.0002833,2]
[311284061,1705018239270,-493.76,0.00028347,2]
[311284062,1705018239283,-167.28,0.00028349,2]
[311284063,1705018239292,-150.95,0.00028414,2]
[311284064,1705018239302,-503.48,0.00028466,2]
[311284065,1705018239311,-150.95,0.00028497,2]
[311284066,1705018239322,-433.16359983,0.000285,2]
[311284067,1705018239337,-493.76,0.00028505,2]
[311284068,1705018239346,-150.95,0.00028581,2]
[311284070,1705018239357,-26671.0,0.000286,2]
[311284071,1705018239366,-2950.0,0.000286,2]
[311284073,1705018239375,-503.48,0.0002861,2]
[311284075,1705018239384,-493.76,0.00028664,2]
[311284077,1705018239393,-150.95,0.00028664,2]
[311284079,1705018239402,-202.0,0.00028705,3]
[311284081,1705018239411,-2390.50140447,0.00028754,6]
[311284083,1705018239420,-503.48,0.00028755,2]
[311284085,1705018239429,-155.0,0.00028767,2]
[311284087,1705018239439,-493.76,0.00028822,2]
[311284089,1705018239448,-503.48,0.00028899,2]
[311284091,1705018239457,-403.11,0.00028925,2]
[311284093,1705018239466,-160.10630196,0.00029,2]
[311284095,1705018239476,-650.0,0.00029,3]
[311284097,1705018239485,-503.48,0.00029044,2]
[311284099,1705018239495,-709.39,0.0002907,2]
[311284101,1705018239505,-270.97259848,0.00029075,2]
[311284103,1705018239515,-503.48,0.00029188,2]
[311284105,1705018239525,-335.29116354,0.00029207,2]
[311284107,1705018239534,-4942.90576656,0.00029264,2]
[311284109,1705018239543,-503.48,0.00029333,2]
[311284111,1705018239553,-503.48,0.00029477,2]
[311284113,1705018239562,-9989.30842745,0.000295,2]
[311284115,1705018239572,-187.63828412,0.000295,3]
[311284117,1705018239581,-382.85,0.00029585,2]
[311284119,1705018239590,-503.48,0.00029622,2]
[311284121,1705018239599,-645.56,0.00029677,2]
[311284123,1705018239611,-503.48,0.00029766,2]
[311284126,1705018239623,-202.0,0.00029784,5]
[311284128,1705018239633,-195.68945489,0.000298,2]
[311284130,1705018239642,-16951.64945071,0.000299,2]
[311284132,1705018239651,-167.28,0.00029908,2]
[311284134,1705018239660,-503.48,0.00029911,2]
[311284136,1705018239670,-2715.22247625,0.0002996,2]
[311284138,1705018239679,-200.0,0.0003,2]
[311284140,1705018239688,-2734.96538905,0.0003,2]
[311284142,1705018239698,-189.89374987,0.0003,2]
[311284144,1705018239708,-1572.87627363,0.0003,2]
[311284146,1705018239717,-311.01234172,0.0003,2]
[311284148,1705018239726,-581.6237216,0.0003,2]
[311284150,1705018239735,-351.05725836,0.0003,2]
[311284152,1705018239744,-17758.5821026,0.0003,2]
[311284154,1705018239754,-9622.66491322,0.0003,2]
[311284156,1705018239763,-155.0,0.0003,2]
[311284158,1705018239772,-308366.93329374,0.0003,4]
[311284160,1705018239781,-72797.28205453,0.0003,4]
[311284162,1705018239791,-1000.0,0.0003,2]
[311284164,1705018239800,-874.52169429,0.00030043,4]
[311284166,1705018239809,-709.39,0.00030049,2]
[311284168,1705018239818,-503.48,0.00030055,2]
[311284170,1705018239828,-153.84,0.00030137,2]
[311284172,1705018239837,-10000.0,0.00030137,2]
[311284174,1705018239846,-155.0,0.00030137,2]
[311284176,1705018239859,-503.48,0.000302,2]
[311284178,1705018239868,-640.0,0.00030278,2]
[311284180,1705018239877,-403.11,0.00030302,2]
[311284182,1705018239886,-202.08,0.00030449,2]
[311284184,1705018239895,-4942.90576656,0.00030536,2]
[311284186,1705018239904,-164.39,0.00030543,2]
[311284188,1705018239913,-360.0,0.00030789,2]
[311284190,1705018239922,-202.0,0.00030863,7]
[311284192,1705018239931,-151.03325835,0.000309,2]
[311284194,1705018239940,-151.03325826,0.000309,2]
[311284196,1705018239949,-151.03325826,0.000309,2]
[311284198,1705018239958,-151.03325826,0.000309,2]
[311284200,1705018239967,-151.03325826,0.000309,2]
[311284202,1705018239977,-151.03325826,0.000309,2]
[311284204,1705018239987,-700.0,0.00031,3]
[311284206,1705018239997,-709.39,0.00031027,2]
[311284208,1705018240006,-153.84,0.0003105,2]
[311284210,1705018240015,-167.28,0.00031468,2]
[311284212,1705018240024,-500.0,0.000315,2]
[311284214,1705018240034,-152.13,0.00031507,2]
[311284216,1705018240043,-155.0,0.00031507,2]
[311284218,1705018240054,-152.4,0.00031639,2]
[311284220,1705018240063,-165.06,0.00031644,2]
[311284222,1705018240072,-403.11,0.0003168,2]
[311284224,1705018240081,-874.52169429,0.00031757,5]
[311284226,1705018240090,-170.11460227,0.00031797,2]
[311284257,1705018240360,-303505.286893,0.000318,3]
[311284259,1705018240369,-4942.90576656,0.00031809,3]
[311284261,1705018240378,-918.23670881,0.00031899,4]
[311284264,1705018240387,-150.0,0.00031899,2]
[311284266,1705018240396,-150.0,0.00031899,2]
[311284267,1705018240406,-245000.0,0.000319,2]
[311284269,1705018240416,-151.03325826,0.00031939,2]
[311284270,1705018240425,-645.56,0.00031941,2]
[311284272,1705018240435,-202.0,0.00031943,9]
[311284274,1705018240445,-153.84,0.00031963,2]
[311284276,1705018240454,-155.68374332,0.00032,2]
[311284278,1705018240464,-173559.82731972,0.00032,2]
[311284280,1705018240473,-2500.0,0.00032,7]
[311284282,1705018240483,-709.39,0.00032006,2]
[311284284,1705018240492,-152.4,0.00032011,2]
[311284286,1705018240501,-1022.54402972,0.000321,2]
[311284288,1705018240510,-152.4,0.00032383,2]
[311284290,1705018240519,-1000.0,0.000324,7]
[311284292,1705018240529,-1000.0,0.000324,7]
[311284294,1705018240537,-1000.0,0.000325,2]
[311284296,1705018240546,-152.4,0.00032755,2]
[311284298,1705018240555,-1000.0,0.000328,7]
[311284300,1705018240565,-264.90362729,0.00032876,7]
[311284302,1705018240575,-153.84,0.00032877,2]
[311284304,1705018240584,-830.15,0.00032877,15]
[311284306,1705018240593,-3871.0,0.00032877,7]
[311284308,1705018240604,-788.0,0.00032877,2]
[311284310,1705018240613,-709.39,0.00032984,2]
[311284312,1705018240622,-750.0,0.00033,3]
[311284313,1705018240631,-2500.0,0.00033,10]
[311284315,1705018240641,-202.0,0.00033022,11]
[311284317,1705018240650,-167.28,0.00033028,2]
[311284319,1705018240659,-403.11,0.00033057,2]
[311284321,1705018240668,-152.4,0.00033127,2]
[311284323,1705018240677,-150000.0,0.00033305,3]
[311284325,1705018240686,-111395.57331273,0.00033305,3]
[311284327,1705018240695,-640.0,0.00033306,2]
[311284329,1705018240704,-151.03325826,0.00033445,2]
[311284331,1705018240713,-874.52169429,0.00033471,6]
[311284333,1705018240722,-152.4,0.00033499,2]
[311284335,1705018240731,-500.0,0.00033594,2]
[311284337,1705018240741,-200.0,0.00033607,10]
[311284339,1705018240751,-800.0,0.00033607,5]
[311284341,1705018240759,-500.0,0.00033615,2]
[311284343,1705018240768,-500.0,0.00033635,2]
[311284345,1705018240778,-500.0,0.00033656,2]
[311284347,1705018240787,-3000.0,0.0003366,2]
[311284349,1705018240796,-500.0,0.00033676,2]
[311284351,1705018240805,-500.0,0.00033687,2]
[311284353,1705018240815,-206.3212,0.00033689,2]
[311284355,1705018240824,-500.0,0.00033697,2]
[311284357,1705018240833,-500.0,0.00033707,2]
[311284359,1705018240842,-500.0,0.00033717,2]
[311284361,1705018240853,-500.0,0.00033727,2]
[311284363,1705018240863,-800.0,0.00033727,5]
[311284365,1705018240872,-2900.0,0.00033735,2]
[311284367,1705018240881,-8080.0,0.00033735,2]
[311284369,1705018240891,-19673.0,0.00033735,2]
[311284371,1705018240900,-4167.0,0.00033735,2]
[311284373,1705018240909,-4864.668,0.00033735,2]
[311284375,1705018240918,-2269.0,0.00033735,2]
[311284377,1705018240927,-1028.0,0.00033735,2]
[311284379,1705018240936,-150.0,0.00033785,2]
[311284381,1705018240945,-153.84,0.0003379,2]
[311284383,1705018240955,-152.4,0.00033871,2]
[311284385,1705018240966,-525.56288473,0.00033899,6]
[311284387,1705018240975,-7500.0,0.000339,2]
[311284389,1705018240984,-500.0,0.000339,2]
[311284391,1705018240994,-83508.5611,0.000339,2]
[311284393,1705018241003,-150.0,0.00033929,2]
[311284395,1705018241013,-709.39,0.00033963,2]
[311284397,1705018241022,-1321.89,0.00033998,4]
[311284399,1705018241031,-4259.01669385,0.00033999,4]
[311284401,1705018241040,-3291.64435569,0.00033999,2]
[311284403,1705018241054,-150.0,0.00033999,2]
[311284406,1705018241063,-150.0,0.00033999,2]
[311284408,1705018241073,-109856.62775324,0.00034,2]
[311284410,1705018241082,-201.6432844,0.00034,2]
[311284412,1705018241092,-1000.0,0.00034,4]
[311284414,1705018241103,-155.0,0.00034,2]
[311284416,1705018241112,-802.19636617,0.00034,4]
[311284418,1705018241122,-1973.3174974,0.00034,2]
[311284420,1705018241131,-140424.86834236,0.00034,2]
[311284422,1705018241140,-150.0,0.00034,6]
[311284424,1705018241150,-857.915024,0.00034,2]
[311284426,1705018241159,-300.0,0.00034,7]
[311284428,1705018241168,-2500.0,0.00034,10]
[311284430,1705018241177,-319.64,0.00034,2]
[311284432,1705018241187,-150.0,0.00034,7]
[311284434,1705018241196,-1013.963449,0.00034,2]
[311284436,1705018241205,-8283.2724666,0.00034002,2]
[311284438,1705018241215,-5127.7683534,0.00034002,2]
[311284440,1705018241224,-47521.949179,0.00034002,2]
[311284442,1705018241234,-7487.6754759,0.00034025,2]
[311284444,1705018241243,-4635.2532167,0.00034025,2]
[311284446,1705018241252,-42905.0378233,0.00034025,2]
[311284448,1705018241261,-3000.0,0.0003403,2]
[311284450,1705018241270,-200000.0,0.00034048,10]
[311284452,1705018241280,-777.40112,0.00034098,2]
[311284454,1705018241290,-202.0,0.00034101,13]
[311284456,1705018241299,-152.29,0.00034119,2]
[311284458,1705018241311,-477.40112,0.00034198,2]
[311284460,1705018241321,-2309.0,0.000342,2]
[311284462,1705018241331,-645.56,0.00034205,2]
[311284464,1705018241340,-360.0,0.0003421,2]
[311284466,1705018241349,-152.4,0.00034243,2]
[311284468,1705018241360,-152.29,0.00034291,2]
[311284470,1705018241369,-333.40112,0.00034298,2]
[311284472,1705018241379,-333.40112,0.00034398,2]
[311284474,1705018241388,-152.29,0.00034462,2]
[311284476,1705018241398,-525.56288472,0.00034471,7]
[311284478,1705018241407,-6692.0784852,0.00034476,2]
[311284480,1705018241416,-4142.73808,0.00034476,2]
[311284482,1705018241426,-38288.1264676,0.00034476,2]
[311284484,1705018241436,-333.40112,0.00034498,2]
[311284486,1705018241445,-104699.84932854,0.000345,2]
[311284489,1705018241455,-2500.0,0.000345,14]
[311284491,1705018241464,-340.822504,0.0003452,2]
[311284493,1705018241474,-894.659074,0.0003452,2]
[311284495,1705018241483,-2774.329066,0.0003452,2]
[311284497,1705018241493,-520.95,0.00034521,2]
[311284499,1705018241502,-333.40112,0.00034598,2]
[311284500,1705018241511,-152.4,0.00034615,2]
[311284502,1705018241521,-152.29,0.00034633,2]
[311284505,1705018241531,-180.0,0.00034658,2]
[311284507,1705018241540,-3000.0,0.0003466,2]
[311284509,1705018241549,-333.40112,0.00034698,2]
[311284511,1705018241559,-153.84,0.00034703,2]
[311284512,1705018241568,-511.233756,0.00034794,2]
[311284515,1705018241577,-1341.988611,0.00034794,2]
[311284516,1705018241587,-4161.493599,0.00034794,2]
[311284518,1705018241597,-333.40112,0.00034798,2]
[311284520,1705018241607,-1000.0,0.000348,2]
[311284522,1705018241617,-152.29,0.00034805,2]
[311284525,1705018241626,-5896.4814945,0.00034852,2]
[311284527,1705018241636,-3650.2229433,0.00034852,2]
[311284529,1705018241646,-33671.2151118,0.00034852,2]
[311284531,1705018241656,-5100.8845038,0.00034876,2]
[311284532,1705018241665,-3157.7078066,0.00034876,2]
[311284534,1705018241676,-29054.3037561,0.00034876,2]
[311284537,1705018241687,-34177.95136391,0.0003488,2]
[311284539,1705018241697,-170.11460227,0.00034897,2]
[311284541,1705018241707,-333.40112,0.00034898,2]
[311284543,1705018241720,-5907.04834869,0.000349,2]
[311284545,1705018241730,-158432.7200786,0.000349,2]
[311284547,1705018241740,-508.43533029,0.000349,2]
[311284549,1705018241751,-610.82874271,0.000349,4]
[311284551,1705018241761,-1060.48655931,0.000349,2]
[311284553,1705018241774,-1060.48655923,0.000349,2]
[311284555,1705018241785,-1060.48655923,0.000349,2]
[311284557,1705018241796,-1060.48655923,0.000349,2]
[311284559,1705018241807,-1060.48655923,0.000349,2]
[311284561,1705018241817,-1060.48655923,0.000349,2]
[311284563,1705018241827,-1060.48655923,0.000349,2]
[311284565,1705018241838,-1060.48655923,0.000349,2]
[311284567,1705018241848,-24437.3924003,0.00034907,2]
[311284568,1705018241864,-681.645008,0.00034931,2]
[311284569,1705018241874,-1789.318148,0.00034931,2]
[311284570,1705018241884,-5548.658132,0.00034931,2]
[311284571,1705018241894,-709.39,0.00034941,2]
[311284572,1705018241903,-151.03325826,0.00034952,2]
[311284573,1705018241913,-4305.287513,0.00034952,2]
[311284574,1705018241922,-2665.19267,0.00034952,2]
[311284575,1705018241932,-152.29,0.00034976,2]
[311284576,1705018241942,-152.4,0.00034987,2]
[311284577,1705018241951,-333.40112,0.00034998,2]
[311284579,1705018241961,-30139.12876072,0.00034998,2]
[311284581,1705018241971,-500.0,0.00034999,7]
[311284583,1705018241980,-158.76448784,0.00034999,7]
[311284585,1705018241989,-340.88178698,0.00034999,7]
[311284587,1705018241998,-500.0,0.00034999,7]
[311284589,1705018242009,-585.62106458,0.00034999,7]
[311284591,1705018242019,-500.0,0.00034999,7]
[311284593,1705018242028,-548.54602083,0.00034999,7]
[311284596,1705018242041,-150.0,0.00034999,2]
[311284597,1705018242051,-150.0,0.00034999,2]
[311284599,1705018242061,-100000.0,0.00035,5]
[311284601,1705018242071,-16499.22203045,0.00035,2]
[311284604,1705018242082,-255.41007841,0.00035,4]
[311284606,1705018242091,-183110.16845117,0.00035,2]
[311284609,1705018242112,-505596.64576662,0.00035,2]
[311284611,1705018242122,-2500.0,0.00035,2]
[311284613,1705018242131,-1804.3259406,0.00035,4]
[311284615,1705018242141,-2596.05382368,0.00035,10]
[311284617,1705018242151,-185.50990881,0.00035,4]
[311284619,1705018242160,-3412.80530229,0.00035,3]
[311284621,1705018242169,-619.07656999,0.00035,4]
[311284623,1705018242179,-213343.73974137,0.00035,2]
[311284625,1705018242189,-4795.82816389,0.00035,7]
[311284627,1705018242199,-8750.0,0.00035,2]
[311284628,1705018242209,-151.0,0.00035,2]
[311284630,1705018242220,-800.0,0.00035,3]
[311284633,1705018242230,-300.0,0.00035,8]
[311284635,1705018242241,-289.76331463,0.00035,2]
[311284637,1705018242251,-289.76331463,0.00035,2]
[311284639,1705018242261,-1000.0,0.00035,2]
[311284641,1705018242271,-150.0,0.00035,8]
[311284643,1705018242281,-1013.963449,0.00035,2]
[311284645,1705018242292,-450.0,0.0003502,3]
[311284647,1705018242302,-525.56288472,0.00035042,7]
[311284649,1705018242312,-852.056261,0.00035068,2]
[311284651,1705018242322,-2236.647685,0.00035068,2]
[311284653,1705018242332,-6935.822666,0.00035068,2]
[311284655,1705018242342,-8750.0,0.00035088,2]
[311284657,1705018242351,-333.40112,0.00035098,2]
[311284659,1705018242364,-2500.0,0.00035111,20]
[311284661,1705018242373,-214.0,0.0003514,2]
[311284663,1705018242383,-250.0,0.0003514,2]
[311284665,1705018242392,-150.0,0.0003514,2]
[311284667,1705018242402,-150.425,0.0003514,2]
[311284669,1705018242413,-150.0,0.0003514,2]
[311284671,1705018242423,-150.208,0.0003514,2]
[311284673,1705018242432,-150.0,0.0003514,2]
[311284675,1705018242441,-246.175,0.0003514,2]
[311284677,1705018242451,-152.29,0.00035148,2]
[311284679,1705018242460,-200.0,0.00035161,2]
[311284681,1705018242470,-150.0,0.00035161,2]
[311284683,1705018242479,-150.0,0.00035161,2]
[311284685,1705018242488,-153.84,0.00035161,2]
[311284687,1705018242498,-150.0,0.00035161,2]
[311284689,1705018242507,-524.754,0.00035161,2]
[311284691,1705018242517,-385.0,0.00035161,2]
[311284693,1705018242526,-944.0,0.00035161,2]
[311284695,1705018242535,-1851.0,0.00035161,2]
[311284697,1705018242544,-834.0,0.00035161,2]
[311284699,1705018242554,-1251.0,0.00035161,2]
[311284701,1705018242564,-1233.0,0.00035161,2]
[311284703,1705018242573,-1930.0,0.00035161,2]
[311284706,1705018242583,-512.67,0.00035161,2]
[311284708,1705018242592,-995.0,0.00035161,2]
[311284710,1705018242601,-1139.0,0.00035161,2]
[311284712,1705018242613,-880.0,0.00035161,2]
[311284714,1705018242622,-318.0,0.00035161,2]
[311284716,1705018242631,-233.957,0.00035161,2]
[311284718,1705018242640,-507.0,0.00035161,2]
[311284720,1705018242649,-425.0,0.00035161,2]
[311284722,1705018242658,-8750.0,0.00035175,2]
[311284724,1705018242667,-202.0,0.0003518,15]
[311284726,1705018242676,-874.52169429,0.00035186,7]
[311284728,1705018242685,-333.40112,0.00035198,2]
[311284730,1705018242694,-270.97259848,0.0003525,2]
[311284732,1705018242703,-150.0,0.00035261,2]
[311284734,1705018242713,-150.0,0.00035261,2]
[311284736,1705018242722,-8750.0,0.00035263,2]
[311284738,1705018242731,-3000.0,0.0003528,2]
[311284741,1705018242740,-333.40112,0.00035298,2]
[311284743,1705018242749,-152.29,0.00035319,2]
[311284745,1705018242758,-1192.878765,0.00035342,2]
[311284747,1705018242767,-3131.306759,0.00035342,2]
[311284749,1705018242776,-9710.151732,0.00035342,2]
[311284751,1705018242785,-8750.0,0.0003535,2]
[311284753,1705018242794,-152.4,0.00035359,2]
[311284755,1705018242804,-333.40112,0.00035398,2]
[311284757,1705018242813,-8750.0,0.00035438,2]
[311284759,1705018242822,-152.29,0.00035491,2]
[311284762,1705018242831,-333.40112,0.00035498,2]
[311284765,1705018242841,-335.29116354,0.00035514,2]
[311284768,1705018242850,-8750.0,0.00035525,2]
[311284771,1705018242861,-1060.48655923,0.00035532,2]